bitfinex/quotes_BTCUSD_20230404
["timestamp","ask_amount","ask_price","bid_price","bid_amount"]
[1680604436146,0.02692209,28236.0,28235.0,0.008394]
[1680604436371,0.4130413,28239.0,28235.0,0.008394]
[1680604437018,0.4128613,28239.0,28235.0,0.008394]
[1680604437449,0.4398613,28239.0,28235.0,0.008394]
[1680604437879,0.43978339,28239.0,28235.0,0.008574]
[1680604438100,0.43978339,28239.0,28235.0,0.008394]
[1680604438769,0.43970548,28239.0,28235.0,0.008394]
[1680604439402,0.44395448,28239.0,28235.0,0.008394]
[1680604439671,0.027,28239.0,28236.0,0.242498]
[1680604439891,2.09e-06,28242.0,28240.0,0.2]
[1680604440112,0.00012209,28245.0,28241.0,0.13181564]
[1680604440345,0.004248,28249.0,28243.0,0.083]
[1680604440346,0.33378132,28247.0,28243.0,0.083]
[1680604440557,0.37635805,28245.0,28244.0,0.05033964]
[1680604440771,0.37648014,28245.0,28244.0,0.01042]
[1680604441012,0.00012209,28245.0,28243.0,0.008715]
[1680604441254,0.40137298,28246.0,28243.0,0.008715]
[1680604441496,0.40149507,28246.0,28243.0,0.008715]
[1680604441925,0.40149507,28246.0,28244.0,0.001]
[1680604441926,0.009,28245.0,28244.0,0.001]
[1680604442145,0.40149507,28246.0,28243.0,0.008715]
[1680604442371,0.004248,28245.0,28243.0,0.008715]
[1680604442599,0.004248,28245.0,28243.0,0.009715]
[1680604442814,0.41474307,28246.0,28243.0,0.009715]
[1680604443038,0.41049507,28246.0,28243.0,0.009715]
[1680604443259,0.41049507,28246.0,28243.0,0.008715]
[1680604443510,0.40149507,28246.0,28243.0,0.008715]
[1680604443735,0.34943783,28245.0,28243.0,0.008715]
[1680604443980,0.34943783,28245.0,28243.0,0.009715]
[1680604444877,0.34943783,28245.0,28243.0,0.008715]
[1680604445106,0.35843783,28245.0,28243.0,0.009715]
[1680604445331,0.36268583,28245.0,28240.0,0.28368]
[1680604445542,0.49558264,28245.0,28241.0,0.010392]
[1680604445769,0.35368583,28245.0,28241.0,0.010392]
[1680604446323,0.37890191,28244.0,28243.0,0.001]
[1680604446606,0.37890191,28244.0,28240.0,0.28368]
[1680604446841,0.37890191,28244.0,28241.0,0.011194]
[1680604447058,0.37890191,28244.0,28241.0,0.010194]
[1680604447284,0.37890191,28244.0,28243.0,0.002]
[1680604447499,0.37890191,28244.0,28240.0,0.28368]
[1680604447733,0.14189681,28243.0,28241.0,0.001]
[1680604447958,0.39214991,28244.0,28241.0,0.001]
[1680604447959,0.004248,28242.0,28241.0,0.001]
[1680604448179,0.004248,28243.0,28239.0,0.20018]
[1680604448411,0.14614481,28243.0,28240.0,0.010476]
[1680604448697,0.004248,28243.0,28240.0,0.010476]
[1680604449141,0.45117515,28242.0,28239.0,0.2]
[1680604449378,0.45542415,28242.0,28241.0,0.001]
[1680604449619,0.45123724,28242.0,28239.0,0.195]
[1680604449853,0.45109724,28242.0,28240.0,0.002]
[1680604450083,0.45109724,28242.0,28239.0,0.19518]
[1680604450310,0.46434624,28242.0,28241.0,0.002]
[1680604450531,0.00012209,28243.0,28241.0,0.03991964]
[1680604450764,0.005,28244.0,28242.0,0.010622]
[1680604451195,0.005,28244.0,28241.0,0.0835]
[1680604451419,0.005,28244.0,28242.0,0.010745]
[1680604452946,0.46994252,28243.0,28242.0,0.010745]
[1680604453592,0.46994252,28243.0,28241.0,0.0835]
[1680604453872,0.46994252,28243.0,28242.0,0.010131]
[1680604454095,0.46994252,28243.0,28241.0,0.0835]
[1680604454856,0.47194252,28243.0,28242.0,0.010627]
[1680604455101,0.46994252,28243.0,28241.0,0.0835]
[1680604455301,0.46994252,28243.0,28241.0,0.0875]
[1680604455529,0.46994252,28243.0,28241.0,0.0835]
[1680604455759,0.47194252,28243.0,28241.0,0.0835]
[1680604456186,0.46994252,28243.0,28241.0,0.0835]
[1680604456407,0.46994252,28243.0,28241.0,0.0875]
[1680604457072,0.47419052,28243.0,28241.0,0.0875]
[1680604457711,0.47419052,28243.0,28241.0,0.0835]
[1680604458362,0.48268752,28243.0,28241.0,0.0875]
[1680604458887,0.47419052,28243.0,28241.0,0.0875]
[1680604459113,0.47419052,28243.0,28241.0,0.0835]
[1680604459316,0.47619052,28243.0,28241.0,0.0835]
[1680604459528,0.47419052,28243.0,28241.0,0.0835]
[1680604459730,0.48219052,28243.0,28241.0,0.0845]
[1680604460372,0.47794252,28243.0,28241.0,0.0845]
[1680604460813,0.47794252,28243.0,28241.0,0.001]
[1680604461029,0.0085,28242.0,28241.0,0.001]
[1680604461891,0.00842209,28242.0,28241.0,0.001]
[1680604462284,0.00842209,28242.0,28239.0,0.27818]
[1680604462461,0.008,28242.0,28241.0,0.001]
[1680604462671,0.00792209,28242.0,28241.0,0.001]
[1680604463677,0.00784418,28242.0,28241.0,0.001]
[1680604463884,0.01634418,28242.0,28241.0,0.001]
[1680604464840,0.01634418,28242.0,28239.0,0.27818]
[1680604464841,0.01626627,28242.0,28240.0,0.25]
[1680604465043,0.01638836,28242.0,28241.0,0.01073]
[1680604465669,0.01626627,28242.0,28241.0,0.01073]
[1680604465883,0.01618836,28242.0,28241.0,0.01073]
[1680604466462,0.0085,28242.0,28239.0,0.0889656]
[1680604466662,0.01142209,28242.0,28240.0,0.010444]
[1680604466864,0.00842209,28242.0,28239.0,0.0889656]
[1680604467012,0.01742209,28242.0,28241.0,0.001]
[1680604467429,0.00842209,28242.0,28239.0,0.0889656]
[1680604467629,0.01142209,28242.0,28240.0,0.01059]
[1680604467854,0.00834418,28242.0,28240.0,0.01059]
[1680604468074,0.01734418,28242.0,28241.0,0.001]
[1680604468314,0.00834418,28242.0,28240.0,0.01059]
[1680604468756,0.00826627,28242.0,28240.0,0.01059]
[1680604469443,0.01126627,28242.0,28239.0,0.0889656]
[1680604469658,0.01118836,28242.0,28240.0,0.010944]
[1680604470097,0.00818836,28242.0,28240.0,0.010944]
[1680604470311,0.44877561,28243.0,28240.0,0.010944]
[1680604470731,0.00292209,28242.0,28240.0,0.010944]
[1680604470940,0.44877561,28243.0,28240.0,0.010944]
[1680604471366,0.45177561,28243.0,28240.0,0.010944]
[1680604471584,0.45177561,28243.0,28239.0,0.0889656]
[1680604472305,0.44877561,28243.0,28241.0,0.0745]
[1680604472531,0.45177561,28243.0,28242.0,0.008143]
[1680604472751,0.0085,28243.0,28242.0,0.008143]
[1680604472989,0.0085,28243.0,28242.0,0.01471926]
[1680604473215,0.0175,28243.0,28242.0,0.01471926]
[1680604475302,0.009,28243.0,28242.0,0.012429]
[1680604475742,0.44964622,28243.0,28242.0,0.002]
[1680604475992,0.068089,28243.0,28242.0,0.002]
[1680604476215,0.58566549,28243.0,28242.0,0.002]
[1680604476909,0.83566549,28243.0,28242.0,0.002]
[1680604478677,0.83141749,28243.0,28242.0,0.002]
[1680604478903,0.83566549,28243.0,28242.0,0.002]
[1680604479544,0.009,28241.0,28238.0,0.08397397]
[1680604479771,0.009,28241.0,28237.0,0.46007369]
[1680604479986,0.15089681,28241.0,28237.0,0.21007369]
[1680604480213,0.009,28241.0,28238.0,0.09053209]
[1680604480447,0.009,28241.0,28239.0,0.010668]
[1680604480935,0.3649765,28240.0,28238.0,0.09071209]
[1680604481148,0.3649765,28240.0,28239.0,0.009921]
[1680604481575,0.3649765,28240.0,28239.0,0.001]
[1680604481760,0.36489859,28240.0,28239.0,0.001]
[1680604482003,0.36489859,28240.0,28238.0,0.08415397]
[1680604482231,0.36489859,28240.0,28239.0,0.001]
[1680604482232,0.37389859,28240.0,28239.0,0.001]
[1680604482664,0.01742209,28240.0,28239.0,0.001]
[1680604482880,0.44138769,28240.0,28239.0,0.011284]
[1680604483122,0.44138769,28240.0,28239.0,0.001]
[1680604483335,0.44138769,28240.0,28239.0,0.011284]
[1680604483573,0.44138769,28240.0,28239.0,0.09550797]
[1680604483797,0.44563669,28240.0,28239.0,0.001]
[1680604484230,0.44138769,28240.0,28239.0,0.001]
[1680604484737,0.44563669,28240.0,28239.0,0.001]
[1680604485626,0.44575878,28240.0,28239.0,0.001]
[1680604485837,0.49422969,28240.0,28239.0,0.001]
[1680604486732,0.49572069,28240.0,28239.0,0.001]
[1680604487162,0.49584278,28240.0,28239.0,0.001]
[1680604487392,0.57104278,28240.0,28239.0,0.001]
[1680604488517,0.1942144,28237.0,28235.0,0.00473522]
[1680604488714,0.1984634,28237.0,28235.0,0.00473522]
[1680604489142,0.00824231,28236.0,28235.0,0.00473522]
[1680604490024,0.00824231,28236.0,28235.0,0.00973522]
[1680604490240,0.00824231,28236.0,28235.0,0.00473522]
[1680604490464,0.00824231,28236.0,28235.0,0.00973522]
[1680604490687,0.00824231,28236.0,28235.0,0.00473522]
[1680604490908,0.00824231,28236.0,28235.0,0.00973522]
[1680604491376,0.00824231,28236.0,28235.0,0.005]
[1680604491586,0.00824231,28236.0,28234.0,0.02365635]
[1680604491817,0.01024231,28236.0,28234.0,0.02365635]
[1680604492276,0.0753,28235.0,28234.0,0.02365635]
[1680604492491,0.0838,28235.0,28234.0,0.02365635]
[1680604492699,0.0838,28235.0,28234.0,0.01865635]
[1680604493338,0.0858,28235.0,28234.0,0.02917935]
[1680604493590,0.0858,28235.0,28234.0,0.01865635]
[1680604494032,0.09005,28235.0,28234.0,0.01865635]
[1680604494181,0.0858,28235.0,28234.0,0.01865635]
[1680604494594,0.0773,28235.0,28234.0,0.02497517]
[1680604494802,0.0773,28235.0,28234.0,0.04920766]
[1680604495012,0.002,28235.0,28234.0,0.45838163]
[1680604496349,0.002,28235.0,28234.0,0.44421463]
[1680604496556,0.002,28235.0,28234.0,2.17909446]
[1680604496990,0.002,28235.0,28234.0,0.90441466]
[1680604497213,0.002,28235.0,28234.0,1.84518156]
[1680604497429,0.002,28235.0,28234.0,2.26344006]
[1680604497657,0.002,28235.0,28234.0,2.19328493]
[1680604497869,0.002,28235.0,28234.0,2.17365362]
[1680604498297,0.002,28235.0,28234.0,2.17982123]
[1680604499166,0.002,28235.0,28234.0,2.18002501]
[1680604499380,0.002,28235.0,28234.0,2.17994415]
[1680604500150,0.002,28235.0,28234.0,0.44539241]
[1680604500407,0.002,28235.0,28234.0,1.7201115]
[1680604500626,0.002,28235.0,28234.0,1.7201113]
[1680604500845,0.002,28235.0,28234.0,1.6449113]
[1680604502852,0.002,28235.0,28234.0,0.37019241]
[1680604503627,0.002,28235.0,28234.0,0.12019241]
[1680604503818,0.002,28235.0,28234.0,0.03586688]
[1680604505284,0.002,28235.0,28234.0,0.12019241]
[1680604505491,0.002,28235.0,28234.0,1.39493641]
[1680604505931,0.002,28235.0,28234.0,0.03586688]
[1680604506830,0.002,28235.0,28234.0,1.3106112]
[1680604507052,0.002,28235.0,28234.0,1.38856534]
[1680604507286,0.002,28235.0,28234.0,1.40921421]
[1680604507744,0.002,28235.0,28234.0,1.39504721]
[1680604508168,0.002,28235.0,28234.0,1.40921421]
[1680604508384,0.002,28235.0,28234.0,1.39504721]
[1680604508601,0.002,28235.0,28234.0,1.38856534]
[1680604508820,0.002,28235.0,28234.0,1.40767084]
[1680604509484,0.002,28235.0,28234.0,1.39350384]
[1680604509704,0.002,28235.0,28234.0,1.40767084]
[1680604510377,0.00208,28235.0,28234.0,1.39350384]
[1680604511044,0.00208,28235.0,28234.0,1.38856534]
[1680604511261,0.00208,28235.0,28234.0,1.40273234]
[1680604511482,0.00208,28235.0,28234.0,1.38856534]
[1680604511728,0.00208,28235.0,28234.0,1.40827377]
[1680604511971,0.00208,28235.0,28234.0,1.40273234]
[1680604512163,0.00208,28235.0,28234.0,1.65873315]
[1680604512839,0.00208,28235.0,28234.0,1.78465287]
[1680604513027,0.00208,28235.0,28234.0,1.65273234]
[1680604513264,0.00208,28235.0,28234.0,1.77865206]
[1680604513499,0.00208,28235.0,28234.0,2.19690795]
[1680604513714,8e-05,28235.0,28234.0,2.11258242]
[1680604513949,0.00108,28235.0,28234.0,2.12358242]
[1680604514196,8e-05,28235.0,28234.0,2.09841542]
[1680604514438,8e-05,28235.0,28234.0,2.17871542]
[1680604514639,8e-05,28235.0,28234.0,2.19288242]
[1680604515105,8e-05,28235.0,28234.0,2.27723725]
[1680604515327,8e-05,28235.0,28234.0,2.19288501]
[1680604515801,8e-05,28235.0,28234.0,2.30991441]
[1680604516026,8e-05,28235.0,28234.0,2.51947581]
[1680604516242,8e-05,28235.0,28234.0,2.34682669]
[1680604516462,0.00108,28235.0,28234.0,2.36882669]
[1680604516683,8e-05,28235.0,28234.0,2.13726529]
[1680604516897,0.00108,28235.0,28234.0,2.15926529]
[1680604517134,0.00108,28235.0,28234.0,2.37211337]
[1680604517360,8e-05,28235.0,28234.0,2.28311337]
[1680604517577,0.00108,28235.0,28234.0,2.30511337]
[1680604517796,0.00108,28235.0,28234.0,2.38871337]
[1680604518018,0.00108,28235.0,28234.0,2.92050393]
[1680604518241,0.00108,28235.0,28234.0,3.47622848]
[1680604518467,0.00108,28235.0,28234.0,3.23838393]
[1680604518658,8e-05,28240.0,28239.0,0.1049376]
[1680604518931,8e-05,28240.0,28239.0,2.05634772]
[1680604519148,8e-05,28240.0,28239.0,2.22391708]
[1680604519367,8e-05,28240.0,28239.0,2.43468147]
[1680604519817,8e-05,28240.0,28239.0,2.95792784]
[1680604520045,8e-05,28240.0,28239.0,2.79789203]
[1680604520261,2.09e-06,28241.0,28240.0,0.581864]
[1680604520478,2.09e-06,28241.0,28240.0,3.01828188]
[1680604521191,2.09e-06,28241.0,28240.0,3.47822488]
[1680604521420,2.09e-06,28241.0,28240.0,4.65877269]
[1680604521636,2.09e-06,28241.0,28240.0,5.12375611]
[1680604521863,2.09e-06,28241.0,28240.0,4.87151884]
[1680604522317,2.09e-06,28241.0,28240.0,5.07121697]
[1680604522534,2.09e-06,28241.0,28240.0,5.49581697]
[1680604522759,2.09e-06,28241.0,28240.0,5.51201945]
[1680604522962,2.09e-06,28241.0,28240.0,5.48401945]
[1680604523169,2.09e-06,28241.0,28240.0,5.51201945]
[1680604523389,2.09e-06,28241.0,28240.0,4.67693251]
[1680604523610,2.09e-06,28241.0,28240.0,4.49236636]
[1680604523832,2.09e-06,28241.0,28240.0,4.46436636]
[1680604524044,2.09e-06,28241.0,28240.0,5.27014167]
[1680604524257,2.09e-06,28241.0,28240.0,4.49218636]
[1680604524445,2.09e-06,28241.0,28240.0,5.29813517]
[1680604524712,2.09e-06,28241.0,28240.0,4.49218636]
[1680604524932,2.09e-06,28241.0,28240.0,5.05421202]
[1680604525154,2.09e-06,28241.0,28240.0,4.47268636]
[1680604525390,2.09e-06,28241.0,28240.0,4.50068636]
[1680604525603,2.09e-06,28241.0,28240.0,4.47268636]
[1680604525871,2.09e-06,28241.0,28240.0,4.50068636]
[1680604526087,2.09e-06,28241.0,28240.0,4.47268636]
[1680604526304,2.09e-06,28241.0,28240.0,4.50068636]
[1680604526524,2.09e-06,28241.0,28240.0,4.47268636]
[1680604526745,2.09e-06,28241.0,28240.0,4.50068636]
[1680604526968,8e-05,28245.0,28244.0,0.0057856]
[1680604527191,8e-05,28245.0,28244.0,2.34621916]
[1680604528508,8e-05,28245.0,28244.0,2.37421916]
[1680604528957,8e-05,28245.0,28244.0,2.75821242]
[1680604529404,0.02310001,28252.0,28249.0,0.109604]
[1680604529405,0.0232221,28252.0,28249.0,0.109604]
[1680604529666,0.02310001,28252.0,28251.0,0.3334]
[1680604529890,0.02310001,28252.0,28251.0,0.7809912]
[1680604530127,0.02310001,28252.0,28251.0,0.74107156]
[1680604530348,0.02310001,28252.0,28251.0,0.74685716]
[1680604531514,0.02310001,28252.0,28251.0,0.77485716]
[1680604531729,0.02310001,28252.0,28251.0,0.74685716]
[1680604531940,0.02310001,28252.0,28251.0,0.77485716]
[1680604532166,0.02310001,28252.0,28251.0,0.74685716]
[1680604532401,0.02310001,28252.0,28251.0,0.77485716]
[1680604532854,0.02175349,28252.0,28251.0,0.78832241]
[1680604533093,0.02175349,28252.0,28251.0,0.96530241]
[1680604533752,0.02048614,28252.0,28251.0,0.96530241]
[1680604534616,0.02048614,28252.0,28251.0,0.78832241]
[1680604534832,0.01924005,28252.0,28251.0,0.78832241]
[1680604535709,0.01801551,28252.0,28251.0,0.78832241]
[1680604536823,0.01680548,28252.0,28251.0,0.41151231]
[1680604537039,0.01680548,28252.0,28251.0,0.43361185]
[1680604537512,0.01680548,28252.0,28251.0,0.46161185]
[1680604537740,0.01546403,28252.0,28251.0,0.40561185]
[1680604537957,0.01546403,28252.0,28251.0,0.43361185]
[1680604538394,0.01546403,28252.0,28251.0,0.40561185]
[1680604538638,0.01546403,28252.0,28251.0,0.43361185]
[1680604538851,0.01413602,28252.0,28251.0,0.40561185]
[1680604539503,0.01413602,28252.0,28251.0,0.57541185]
[1680604539721,0.01262778,28252.0,28251.0,0.57541185]
[1680604540164,0.01262778,28252.0,28251.0,0.60341185]
[1680604540384,0.01262778,28252.0,28251.0,0.40561185]
[1680604540602,0.01262778,28252.0,28251.0,0.43361185]
[1680604540821,0.01262778,28252.0,28251.0,0.40561185]
[1680604540822,0.01113232,28252.0,28251.0,0.40561185]
[1680604541074,0.01113232,28252.0,28251.0,0.43361185]
[1680604541300,0.01113232,28252.0,28251.0,0.40561185]
[1680604541518,0.01113232,28252.0,28251.0,0.43361185]
[1680604541759,0.0096495,28252.0,28251.0,0.43361185]
[1680604541971,0.0096495,28252.0,28251.0,0.40561185]
[1680604542859,0.0079319,28252.0,28251.0,0.43732263]
[1680604543082,0.0079319,28252.0,28251.0,0.40932263]
[1680604543302,0.0079319,28252.0,28251.0,1.71111902]
[1680604543520,0.0079319,28252.0,28251.0,1.68311902]
[1680604543742,0.00588915,28252.0,28251.0,1.71111902]
[1680604543933,0.00588915,28252.0,28251.0,1.68311902]
[1680604544382,0.00588915,28252.0,28251.0,1.71111902]
[1680604544606,0.14778596,28252.0,28251.0,0.04760563]
[1680604544901,0.14778596,28252.0,28251.0,0.08060208]
[1680604544902,0.00386683,28252.0,28251.0,0.08060208]
[1680604545772,0.00386683,28252.0,28251.0,0.03542605]
[1680604545989,0.00386683,28252.0,28251.0,0.06342605]
[1680604546184,0.00386683,28252.0,28251.0,0.03542605]
[1680604546427,0.00386683,28252.0,28251.0,0.05142605]
[1680604546683,0.00386683,28252.0,28251.0,0.04564045]
[1680604547344,0.00386683,28252.0,28251.0,0.02964045]
[1680604547559,0.00386683,28252.0,28251.0,0.05164045]
[1680604548223,0.00386683,28252.0,28251.0,0.046644]
[1680604548451,0.00386683,28252.0,28251.0,0.024644]
[1680604548927,0.00386683,28252.0,28251.0,0.04662707]
[1680604549153,0.00386683,28252.0,28251.0,0.06262707]
[1680604549370,0.00386683,28252.0,28251.0,0.03062707]
[1680604549588,0.00386683,28252.0,28251.0,0.05262707]
[1680604551575,0.00386683,28252.0,28251.0,0.03062707]
[1680604551795,0.00386683,28252.0,28251.0,0.05862707]
[1680604552232,0.00386683,28252.0,28251.0,0.05783148]
[1680604552927,0.00386683,28252.0,28251.0,0.02983148]
[1680604553142,0.00386683,28252.0,28251.0,0.05783148]
[1680604554230,0.00386683,28252.0,28251.0,0.02983148]
[1680604554430,0.00386683,28252.0,28251.0,0.05783148]
[1680604555310,0.00386683,28252.0,28251.0,0.02983148]
[1680604555518,0.00386683,28252.0,28251.0,0.05783148]
[1680604555739,0.00386683,28252.0,28251.0,0.02983148]
[1680604555968,0.00386683,28252.0,28251.0,0.05783148]
[1680604556405,0.00398892,28252.0,28251.0,0.05783148]
[1680604556858,0.00398892,28252.0,28251.0,0.02983148]
[1680604557077,0.00386683,28252.0,28251.0,0.05783148]
[1680604557289,0.00398892,28252.0,28251.0,0.02983148]
[1680604557547,0.00386683,28252.0,28251.0,0.05783148]
[1680604557768,0.00398892,28252.0,28251.0,0.02983148]
[1680604558003,0.00386683,28252.0,28251.0,0.024644]
[1680604558218,0.00386683,28252.0,28251.0,0.04711319]
[1680604559737,0.00398892,28252.0,28251.0,0.03111319]
[1680604560191,0.00398892,28252.0,28251.0,0.05911319]
[1680604560416,0.00386683,28252.0,28251.0,0.03111319]
[1680604560624,0.00386683,28252.0,28251.0,0.05911319]
[1680604561934,0.00386683,28252.0,28251.0,0.03111319]
[1680604561935,0.00398892,28252.0,28251.0,0.03111319]
[1680604562379,0.00398892,28252.0,28251.0,0.024644]
[1680604562594,0.00398892,28252.0,28251.0,0.03003733]
[1680604562802,0.00398892,28252.0,28251.0,0.05909742]
[1680604563434,0.00398892,28252.0,28251.0,0.1429728]
[1680604563685,0.00398892,28252.0,28251.0,0.14131949]
[1680604564835,0.00398892,28252.0,28251.0,0.13651938]
[1680604565060,0.00389526,28252.0,28251.0,0.14159992]
[1680604565298,0.00377526,28252.0,28251.0,0.13651938]
[1680604565505,0.00377526,28252.0,28251.0,0.1506339]
[1680604565720,0.00377526,28252.0,28251.0,0.56864869]
[1680604565935,0.00377526,28252.0,28251.0,0.59709434]
[1680604567307,0.00377526,28252.0,28251.0,0.76508087]
[1680604567522,0.00377526,28252.0,28251.0,0.59709434]
[1680604567998,0.00377526,28252.0,28251.0,0.76508087]
[1680604568225,0.00377526,28252.0,28251.0,0.76482037]
[1680604568653,0.00377526,28252.0,28251.0,0.59683384]
[1680604568879,0.00377526,28252.0,28251.0,1.01482037]
[1680604569349,0.00377526,28252.0,28251.0,0.99282037]
[1680604569573,0.00377526,28252.0,28251.0,0.83275634]
[1680604569795,0.00377526,28252.0,28251.0,0.84691434]
[1680604570021,0.00377526,28252.0,28251.0,0.82491434]
[1680604570247,0.00377526,28252.0,28251.0,0.84691434]
[1680604571190,0.00377526,28252.0,28251.0,0.09474448]
[1680604571191,0.51689039,28252.0,28251.0,0.09474448]
[1680604571428,0.54161567,28252.0,28251.0,0.022]
[1680604571659,0.54149358,28252.0,28251.0,0.022]
[1680604571887,0.58857858,28252.0,28251.0,0.022]
[1680604572113,0.1942144,28250.0,28248.0,0.21046483]
[1680604572349,0.0834,28249.0,28248.0,0.08447493]
[1680604572585,0.0834,28249.0,28248.0,0.08429493]
[1680604573072,0.4675167,28249.0,28247.0,0.08447493]
[1680604573323,0.4675167,28249.0,28247.0,0.08429493]
[1680604573556,0.4675167,28249.0,28246.0,0.21046483]
[1680604573784,0.1942144,28247.0,28246.0,0.08447493]
[1680604574003,0.1942144,28247.0,28246.0,0.09521893]
[1680604574694,0.1942144,28247.0,28246.0,0.11540074]
[1680604574913,0.1942144,28247.0,28246.0,0.11508241]
[1680604575361,0.19427649,28247.0,28246.0,0.1145446]
[1680604575576,0.19433649,28247.0,28245.0,0.014161]
[1680604575815,0.19433649,28247.0,28246.0,0.002]
[1680604576040,0.19383506,28247.0,28246.0,0.016161]
[1680604576269,0.19371297,28247.0,28246.0,0.016161]
[1680604576497,0.19371297,28247.0,28246.0,0.002]
[1680604576718,0.19371297,28247.0,28246.0,0.016161]
[1680604577442,0.19371297,28247.0,28246.0,0.014161]
[1680604577666,0.19371297,28247.0,28246.0,0.02108353]
[1680604577898,0.19371297,28247.0,28246.0,0.03152553]
[1680604578648,0.19371297,28247.0,28246.0,0.02952553]
[1680604578869,0.19371297,28247.0,28246.0,0.04552553]
[1680604579537,0.19371297,28247.0,28246.0,0.22942739]
[1680604579753,0.19371297,28247.0,28246.0,0.89750621]
[1680604580155,0.19371297,28247.0,28246.0,0.88150621]
[1680604580303,0.19371297,28247.0,28246.0,0.89750621]
[1680604580504,0.19371297,28247.0,28246.0,0.88150621]
[1680604580709,0.19371297,28247.0,28246.0,0.90950621]
[1680604581748,0.19371297,28247.0,28246.0,0.88150621]
[1680604582185,0.19371297,28247.0,28246.0,0.60286121]
[1680604582381,0.19371297,28247.0,28246.0,0.05879249]
[1680604583518,0.19371297,28247.0,28246.0,0.010442]
[1680604583777,0.45112356,28248.0,28246.0,0.05227607]
[1680604584015,0.45112356,28248.0,28247.0,0.00869]
[1680604584016,0.00012209,28248.0,28247.0,0.00869]
[1680604584226,0.19371297,28249.0,28247.0,0.3988399]
[1680604584443,0.19371297,28249.0,28248.0,0.010441]
[1680604584668,0.19371297,28249.0,28248.0,0.052921]
[1680604585583,0.19371297,28249.0,28248.0,0.04248]
[1680604585809,0.19371297,28249.0,28248.0,0.053273]
[1680604586035,0.19371297,28249.0,28248.0,0.052879]
[1680604586261,0.19371297,28249.0,28248.0,0.05912189]
[1680604586480,0.19371297,28249.0,28248.0,0.14330102]
[1680604586695,0.19371297,28249.0,28248.0,0.15948102]
[1680604588078,0.19371297,28249.0,28248.0,0.61934022]
[1680604588315,0.19371297,28249.0,28248.0,0.28546769]
[1680604588559,0.19371297,28249.0,28248.0,0.95351349]
[1680604588776,0.19371297,28249.0,28248.0,0.86933759]
[1680604589428,0.19371297,28249.0,28248.0,0.85333759]
[1680604589714,0.19371297,28249.0,28248.0,0.92333422]
[1680604590152,0.19371297,28249.0,28248.0,1.27804478]
[1680604590373,0.19371297,28249.0,28248.0,1.40432409]
[1680604590595,0.19371297,28249.0,28248.0,1.37632409]
[1680604590813,0.19371297,28249.0,28248.0,1.40432409]
[1680604591799,0.19371297,28249.0,28248.0,1.40433102]
[1680604591971,0.19371297,28249.0,28248.0,1.27804478]
[1680604592199,0.19371297,28249.0,28248.0,1.25004478]
[1680604592341,0.19314078,28249.0,28248.0,1.27804478]
[1680604592557,0.19314078,28249.0,28248.0,0.88163828]
[1680604592767,0.19314078,28249.0,28248.0,1.04962481]
[1680604592996,0.19314078,28249.0,28248.0,0.63163828]
[1680604593218,0.68814119,28249.0,28248.0,0.08431879]
[1680604593442,0.62144438,28249.0,28248.0,0.028]
[1680604594078,0.66994338,28249.0,28248.0,0.028]
[1680604594293,0.66640347,28249.0,28248.0,0.028]
[1680604594513,0.62156647,28249.0,28248.0,0.028]
[1680604594734,0.67005147,28249.0,28248.0,0.028]
[1680604594953,0.67252747,28249.0,28246.0,0.08419879]
[1680604595169,0.0744,28248.0,28245.0,0.09046326]
[1680604595387,0.19314078,28246.0,28245.0,0.09046326]
[1680604595820,0.19314078,28246.0,28245.0,0.08419879]
[1680604596076,0.1504,28245.0,28243.0,0.08437879]
[1680604596305,0.61555985,28244.0,28243.0,0.08419879]
[1680604596523,0.61555985,28244.0,28242.0,0.12647059]
[1680604596524,0.61555985,28244.0,28242.0,0.21066938]
[1680604596742,0.0748,28243.0,28242.0,0.08437879]
[1680604596954,0.0748,28243.0,28242.0,0.08419879]
[1680604597172,0.0836,28243.0,28242.0,0.08419879]
[1680604597416,0.27674078,28243.0,28242.0,0.08419879]
[1680604597612,0.27686287,28243.0,28242.0,0.08419879]
[1680604598052,0.27686287,28243.0,28242.0,0.08719879]
[1680604598493,0.27686287,28243.0,28242.0,0.003]
[1680604599368,0.27686287,28243.0,28241.0,0.23106725]
[1680604599609,0.27686287,28243.0,28242.0,0.003]
[1680604600054,0.27686287,28243.0,28242.0,0.02210376]
[1680604600730,0.19326287,28243.0,28242.0,0.02210376]
[1680604601362,0.19326287,28243.0,28242.0,0.01910376]
[1680604601571,0.19326287,28243.0,28242.0,0.02210376]
[1680604602191,0.19314078,28243.0,28242.0,0.00794076]
[1680604602671,0.19314078,28243.0,28242.0,0.02210376]
[1680604603974,0.19326287,28243.0,28241.0,0.25]
[1680604604207,0.19326287,28243.0,28242.0,0.014163]
[1680604605105,0.19326287,28243.0,28241.0,0.264163]
[1680604606147,0.19326287,28243.0,28241.0,0.264223]
[1680604606364,0.19314078,28243.0,28242.0,0.010395]
[1680604606592,0.19314078,28243.0,28242.0,0.014163]
[1680604606799,0.19326287,28243.0,28242.0,0.014163]
[1680604607764,0.19326287,28243.0,28242.0,0.027022]
[1680604608571,0.19326287,28243.0,28242.0,0.017163]
[1680604608810,0.19326287,28243.0,28242.0,0.003]
[1680604609461,0.19256871,28243.0,28242.0,0.003]
[1680604612279,0.19256871,28243.0,28241.0,0.014163]
[1680604612490,0.19256871,28243.0,28242.0,0.003]
[1680604615571,0.27596871,28243.0,28242.0,0.003]
[1680604615790,0.69652959,28243.0,28242.0,0.003]
[1680604616465,0.7181563,28243.0,28242.0,0.003]
[1680604616686,0.7181563,28243.0,28239.0,0.08418551]
[1680604616910,0.048714,28242.0,28239.0,0.2104469]
[1680604617129,0.19256871,28240.0,28239.0,0.2106269]
[1680604617341,0.19256871,28240.0,28239.0,0.08436551]
[1680604617556,0.19111862,28240.0,28239.0,0.08418551]
[1680604618212,0.6708026,28240.0,28239.0,0.08418551]
[1680604618447,0.8750516,28240.0,28238.0,0.08436551]
[1680604618665,0.8708026,28240.0,28239.0,0.003]
[1680604618883,0.9189256,28240.0,28236.0,0.2106269]
[1680604619111,1.01269941,28240.0,28239.0,0.003]
[1680604619361,1.01269941,28240.0,28236.0,0.2106269]
[1680604619362,0.8708026,28240.0,28236.0,0.2106269]
[1680604619607,0.8768026,28240.0,28239.0,0.001]
[1680604619854,0.92058469,28240.0,28236.0,0.08418551]
[1680604620087,0.19111862,28237.0,28236.0,0.08418551]
[1680604621428,0.19117862,28237.0,28236.0,0.09927784]
[1680604621682,0.19111862,28237.0,28236.0,0.09927784]
[1680604621898,0.19111862,28237.0,28236.0,0.08511184]
[1680604623702,0.19111862,28237.0,28236.0,0.09927784]